[Event "Polgar Challenge 2021"]
[Site "Online"]
[Date "2021.04.04"]
[Round "8.7"]
[White "Badelka, Olga"]
[Black "Yoo, Christopher Woojin"]
[Result "0-1"]
[ECO "D24"]
[WhiteElo "2433"]
[BlackElo "2455"]
[Annotator "ChessBase"]
[PlyCount "58"]
[EventDate "2021.04.08"]
[EventType "tourn"]
[EventCountry "NET"]
[SourceTitle "playchess.com"]
[Source "ChessBase"]
[SourceQuality "1"]
[TimeControl "600+5"]

1. d4 {[%emt 0:00:00]} Nf6 {[%emt 0:00:00]} 2. c4 {[%emt 0:00:00]} e6 {[%emt 0:00:00]} 3. Nf3 {[%emt 0:00:00]} d5 {[%emt 0:00:04]} 4. Nc3 {[%emt 0:00:02]} dxc4 {[%emt 0:00:09]} 5. e3 {[%emt 0:00:06]} a6 {[%emt 0:00:03]} 6. a4 {[%emt 0:00:01]} Bb4 {[%emt 0:00:06]} 7. Bxc4 {[%emt 0:00:07]} b6 {[%emt 0:00:03]} 8. O-O {[%emt 0:00:07]} Bb7 {[%emt 0:00:03]} 9. Qe2 {[%emt 0:00:12]} Nbd7 {[%emt 0:00:59]} 10. Rd1 {[%emt 0:00:22]} Qe7 {[%emt 0:01:54]} 11. Bd3 {[%emt 0:03:12]} c5 {[%emt 0:01:32]} 12. Na2 {[%emt 0:00:16]} a5 {[%emt 0:01:36]} 13. Nxb4 {[%emt 0:00:15]} axb4 {[%emt 0:00:02]} 14. e4 {[%emt 0:00:14]} cxd4 {[%emt 0:00:46]} 15. e5 {[%emt 0:00:57]} Nd5 {[%emt 0:00:24]} 16. Bg5 {[%emt 0:00:14]} f6 {[%emt 0:00:35]} 17. exf6 {[%emt 0:00:11]} gxf6 {[%emt 0:00:00]} 18. Bd2 {[%emt 0:00:03]} O-O {[%emt 0:01:10]} 19. Nxd4 {[%emt 0:00:38]} Ne5 {[%emt 0:00:03]} 20. Be4 {[%emt 0:00:20]} Kh8 {[%emt 0:00:24]} 21. f4 {[%emt 0:00:35]} Qc5 {[%emt 0:00:23]} 22. Bxb4 {[%emt 0:01:52]} Nxb4 {[%emt 0:00:59]} 23. Bxb7 {[%emt 0:00:12]} Ned3 {[%emt 0:00:02]} 24. Bxa8 {[%emt 0:01:21]} Qxd4+ {[%emt 0:00:05]} 25. Kf1 {[%emt 0:00:01]} Rxa8 {[%emt 0:00:04]} 26. Ra3 {[%emt 0:00:14]} Qxf4+ {[%emt 0:00:05]} 27. Qf3 {[%emt 0:00:01]} Qxf3+ {[%emt 0:00:01]} 28. gxf3 {[%emt 0:00:00]} Nxb2 {[%emt 0:00:05]} 29. Rd6 {[%emt 0:00:16]} Nc4 {[%emt 0:00:02]} 0-1

[Event "Polgar Challenge 2021"]
[Site "Online"]
[Date "2021.04.04"]
[Round "8.8"]
[White "Lei, Tingjie"]
[Black "Liang, Awonder"]
[Result "0-1"]
[ECO "E92"]
[WhiteElo "2505"]
[BlackElo "2592"]
[Annotator "ChessBase"]
[PlyCount "56"]
[EventDate "2021.04.08"]
[EventType "tourn"]
[EventCountry "NET"]
[SourceTitle "playchess.com"]
[Source "ChessBase"]
[SourceQuality "1"]
[TimeControl "600+5"]

1. d4 {[%emt 0:00:00]} Nf6 {[%emt 0:00:00]} 2. c4 {[%emt 0:00:00]} g6 {[%emt 0:00:00]} 3. Nc3 {[%emt 0:00:00]} Bg7 {[%emt 0:00:00]} 4. e4 {[%emt 0:00:01]} d6 {[%emt 0:00:00]} 5. h3 {[%emt 0:00:01]} O-O {[%emt 0:00:01]} 6. Nf3 {[%emt 0:00:01]} e5 {[%emt 0:00:14]} 7. d5 {[%emt 0:00:02]} a5 {[%emt 0:00:11]} 8. Be3 {[%emt 0:00:04]} Na6 {[%emt 0:00:04]} 9. g4 {[%emt 0:00:01]} Nc5 {[%emt 0:00:08]} 10. Nd2 {[%emt 0:00:02]} c6 {[%emt 0:00:01]} 11. Be2 {[%emt 0:00:09]} a4 {[%emt 0:00:04]} 12. Qc2 {[%emt 0:01:53]} Qa5 {[%emt 0:00:17]} 13. f3 {[%emt 0:01:23]} Bd7 {[%emt 0:01:25]} 14. Kf2 {[%emt 0:00:03]} Ne8 {[%emt 0:03:02]} 15. Rag1 {[%emt 0:00:16]} a3 {[%emt 0:00:13]} 16. b3 {[%emt 0:00:05]} Nc7 {[%emt 0:00:07]} 17. h4 {[%emt 0:00:43]} N7a6 {[%emt 0:00:05]} 18. Ndb1 {[%emt 0:00:58]} Nb4 {[%emt 0:00:17]} 19. Qd1 {[%emt 0:00:02]} f5 {[%emt 0:01:31]} 20. gxf5 {[%emt 0:00:05]} gxf5 {[%emt 0:00:00]} 21. Bh6 {[%emt 0:00:27]} Rf7 {[%emt 0:00:02]} 22. Rxg7+ {[%emt 0:02:03]} Rxg7 {[%emt 0:00:01]} 23. Rg1 {[%emt 0:00:09]} Rg6 {[%emt 0:00:29]} 24. h5 {[%emt 0:00:15]} Qb6 {[%emt 0:00:12]} 25. hxg6 {[%emt 0:02:54]} Nxe4+ {[%emt 0:00:04]} 26. Kg2 {[%emt 0:00:01]} Qf2+ {[%emt 0:00:05]} 27. Kh1 {[%emt 0:00:02]} Qh4+ {[%emt 0:00:02]} 28. Kg2 {[%emt 0:00:03]} Qg3+ {[%emt 0:00:01]} 0-1

[Event "Polgar Challenge 2021"]
[Site "Online"]
[Date "2021.04.04"]
[Round "9.1"]
[White "Salimova, Nurgyul"]
[Black "Zhu, Jiner"]
[Result "1/2-1/2"]
[ECO "E11"]
[WhiteElo "2397"]
[BlackElo "2459"]
[Annotator "ChessBase"]
[PlyCount "102"]
[EventDate "2021.04.08"]
[EventType "tourn"]
[EventCountry "NET"]
[SourceTitle "playchess.com"]
[Source "ChessBase"]
[SourceQuality "1"]
[TimeControl "600+5"]

1. d4 {[%emt 0:00:00]} Nf6 {[%emt 0:00:00]} 2. Nf3 {[%emt 0:00:02]} e6 {[%emt 0:00:00]} 3. g3 {[%emt 0:00:10]} d5 {[%emt 0:00:00]} 4. c4 {[%emt 0:00:02]} Bb4+ {[%emt 0:00:03]} 5. Bd2 {[%emt 0:00:03]} Be7 {[%emt 0:00:02]} 6. Bg2 {[%emt 0:00:03]} O-O {[%emt 0:00:01]} 7. O-O {[%emt 0:00:05]} c6 {[%emt 0:00:03]} 8. Nc3 {[%emt 0:00:08]} dxc4 {[%emt 0:00:07]} 9. e4 {[%emt 0:01:13]} b5 {[%emt 0:00:12]} 10. e5 {[%emt 0:00:21]} Nd5 {[%emt 0:00:02]} 11. Ne4 {[%emt 0:00:01]} a5 {[%emt 0:01:01]} 12. b3 {[%emt 0:00:17]} Ba6 {[%emt 0:00:11]} 13. Re1 {[%emt 0:00:48]} Nd7 {[%emt 0:00:45]} 14. h4 {[%emt 0:00:25]} Qc7 {[%emt 0:01:43]} 15. Nfg5 {[%emt 0:01:33]} h6 {[%emt 0:01:50]} 16. Nh3 {[%emt 0:00:21]} f5 {[%emt 0:01:36]} 17. exf6 {[%emt 0:00:06]} N7xf6 {[%emt 0:00:02]} 18. bxc4 {[%emt 0:02:04]} bxc4 {[%emt 0:00:05]} 19. Rc1 {[%emt 0:00:15]} Ba3 {[%emt 0:00:46]} 20. Rc2 {[%emt 0:00:06]} Bb4 {[%emt 0:00:22]} 21. Nc5 {[%emt 0:01:15]} Bxc5 {[%emt 0:00:27]} 22. dxc5 {[%emt 0:00:00]} e5 {[%emt 0:00:08]} 23. Bf1 {[%emt 0:00:15]} Rad8 {[%emt 0:00:34]} 24. Qc1 {[%emt 0:00:26]} Rfe8 {[%emt 0:00:35]} 25. Qa3 {[%emt 0:00:09]} c3 {[%emt 0:00:30]} 26. Bxc3 {[%emt 0:00:20]} Bxf1 {[%emt 0:00:01]} 27. Rxf1 {[%emt 0:00:15]} Qd7 {[%emt 0:00:04]} 28. Kg2 {[%emt 0:00:11]} Qg4 {[%emt 0:00:17]} 29. Rcc1 {[%emt 0:00:29]} Ne4 {[%emt 0:00:24]} 30. Be1 {[%emt 0:00:06]} Qg6 {[%emt 0:00:17]} 31. f3 {[%emt 0:00:11]} Nef6 {[%emt 0:00:10]} 32. Qb3 {[%emt 0:00:22]} Kh8 {[%emt 0:00:02]} 33. Bf2 {[%emt 0:00:08]} e4 {[%emt 0:00:02]} 34. Rce1 {[%emt 0:00:11]} Rb8 {[%emt 0:00:06]} 35. Qa3 {[%emt 0:00:02]} Nh5 {[%emt 0:00:10]} 36. fxe4 {[%emt 0:00:11]} Rxe4 {[%emt 0:00:04]} 37. Qf3 {[%emt 0:00:10]} Rxe1 {[%emt 0:00:11]} 38. Rxe1 {[%emt 0:00:04]} Nhf6 {[%emt 0:00:04]} 39. Bd4 {[%emt 0:00:07]} Rb4 {[%emt 0:00:07]} 40. Bxf6 {[%emt 0:00:06]} Nxf6 {[%emt 0:00:01]} 41. Nf4 {[%emt 0:00:03]} Rb2+ {[%emt 0:00:03]} 42. Re2 {[%emt 0:00:12]} Rxe2+ {[%emt 0:00:08]} 43. Qxe2 {[%emt 0:00:04]} Qf5 {[%emt 0:00:01]} 44. Qe3 {[%emt 0:00:12]} h5 {[%emt 0:00:06]} 45. Qd4 {[%emt 0:00:03]} Qc2+ {[%emt 0:00:02]} 46. Kf3 {[%emt 0:00:01]} Qxa2 {[%emt 0:00:06]} 47. Qd8+ {[%emt 0:00:01]} Kh7 {[%emt 0:00:01]} 48. Qd3+ {[%emt 0:00:02]} Kg8 {[%emt 0:00:06]} 49. Qd8+ {[%emt 0:00:03]} Kh7 {[%emt 0:00:05]} 50. Qd3+ {[%emt 0:00:02]} Kh8 {[%emt 0:00:06]} 51. Qd8+ {[%emt 0:00:14]} Kh7 {[%emt 0:00:19]} 1/2-1/2

[Event "Polgar Challenge 2021"]
[Site "Online"]
[Date "2021.04.04"]
[Round "9.3"]
[White "Liang, Awonder"]
[Black "Yip, Carissa"]
[Result "1-0"]
[ECO "B08"]
[WhiteElo "2592"]
[BlackElo "2430"]
[Annotator "ChessBase"]
[PlyCount "97"]
[EventDate "2021.04.08"]
[EventType "tourn"]
[EventCountry "NET"]
[SourceTitle "playchess.com"]
[Source "ChessBase"]
[SourceQuality "1"]
[TimeControl "600+5"]

1. d4 {[%emt 0:00:00]} Nf6 {[%emt 0:00:00]} 2. Bf4 {[%emt 0:00:00]} g6 {[%emt 0:00:00]} 3. Nc3 {[%emt 0:00:02]} d6 {[%emt 0:00:14]} 4. e4 {[%emt 0:00:04]} c6 {[%emt 0:00:01]} 5. Qd2 {[%emt 0:00:03]} Nbd7 {[%emt 0:00:05]} 6. Nf3 {[%emt 0:00:02]} Bg7 {[%emt 0:00:13]} 7. Bh6 {[%emt 0:00:04]} O-O {[%emt 0:00:07]} 8. Bxg7 {[%emt 0:00:02]} Kxg7 {[%emt 0:00:01]} 9. O-O-O {[%emt 0:00:27]} Qc7 {[%emt 0:00:25]} 10. h4 {[%emt 0:00:15]} h5 {[%emt 0:00:02]} 11. Bd3 {[%emt 0:01:01]} b5 {[%emt 0:00:12]} 12. Rdg1 {[%emt 0:02:01]} b4 {[%emt 0:00:29]} 13. Nd1 {[%emt 0:00:36]} Nb6 {[%emt 0:00:41]} 14. g4 {[%emt 0:02:25]} Nxg4 {[%emt 0:01:44]} 15. Ne3 {[%emt 0:00:01]} c5 {[%emt 0:00:31]} 16. b3 {[%emt 0:00:47]} Nxe3 {[%emt 0:01:46]} 17. Qxe3 {[%emt 0:00:12]} c4 {[%emt 0:00:01]} 18. Be2 {[%emt 0:00:37]} Ba6 {[%emt 0:00:19]} 19. Kb1 {[%emt 0:00:10]} cxb3 {[%emt 0:00:23]} 20. cxb3 {[%emt 0:00:03]} Bxe2 {[%emt 0:00:05]} 21. Qxe2 {[%emt 0:00:00]} a5 {[%emt 0:00:07]} 22. d5 {[%emt 0:00:34]} Qc3 {[%emt 0:00:30]} 23. Rc1 {[%emt 0:00:10]} Qf6 {[%emt 0:00:03]} 24. Rc6 {[%emt 0:00:06]} Nd7 {[%emt 0:00:08]} 25. Rhc1 {[%emt 0:00:09]} a4 {[%emt 0:00:02]} 26. Qb2 {[%emt 0:00:04]} Qxb2+ {[%emt 0:00:06]} 27. Kxb2 {[%emt 0:00:00]} Nc5 {[%emt 0:00:01]} 28. Rc4 {[%emt 0:00:11]} axb3 {[%emt 0:00:28]} 29. axb3 {[%emt 0:00:01]} Ra3 {[%emt 0:00:02]} 30. Rxb4 {[%emt 0:00:13]} Rfa8 {[%emt 0:00:02]} 31. Kc3 {[%emt 0:00:04]} Ra1 {[%emt 0:00:37]} 32. e5 {[%emt 0:00:43]} R8a2 {[%emt 0:00:46]} 33. exd6 {[%emt 0:00:12]} exd6 {[%emt 0:00:01]} 34. Kc4 {[%emt 0:00:28]} Rxf2 {[%emt 0:00:25]} 35. Nd4 {[%emt 0:00:02]} Rf6 {[%emt 0:00:46]} 36. Kb5 {[%emt 0:00:06]} Rh1 {[%emt 0:00:18]} 37. Rc4 {[%emt 0:00:22]} Rb1 {[%emt 0:00:27]} 38. b4 {[%emt 0:00:10]} Nd3 {[%emt 0:00:02]} 39. Rc7 {[%emt 0:00:04]} Rf2 {[%emt 0:00:31]} 40. Nc6 {[%emt 0:00:16]} Rfb2 {[%emt 0:00:15]} 41. Rd4 {[%emt 0:00:05]} Rb3 {[%emt 0:00:08]} 42. Rd7 {[%emt 0:00:07]} Rf1 {[%emt 0:00:20]} 43. Rxd6 {[%emt 0:00:07]} Nc1 {[%emt 0:00:05]} 44. Rd8 {[%emt 0:00:05]} Rf5 {[%emt 0:00:03]} 45. Kb6 {[%emt 0:00:05]} Na2 {[%emt 0:00:03]} 46. d6 {[%emt 0:00:06]} Nc3 {[%emt 0:00:03]} 47. d7 {[%emt 0:00:07]} Rb5+ {[%emt 0:00:02]} 48. Kc7 {[%emt 0:00:01]} Nd5+ {[%emt 0:00:14]} 49. Kd6 {[%emt 0:00:02]} 1-0

[Event "Polgar Challenge 2021"]
[Site "Online"]
[Date "2021.04.04"]
[Round "9.4"]
[White "Yoo, Christopher Woojin"]
[Black "Lei, Tingjie"]
[Result "1-0"]
[ECO "D38"]
[WhiteElo "2455"]
[BlackElo "2505"]
[Annotator "ChessBase"]
[PlyCount "51"]
[EventDate "2021.04.08"]
[EventType "tourn"]
[EventCountry "NET"]
[SourceTitle "playchess.com"]
[Source "ChessBase"]
[SourceQuality "1"]
[TimeControl "600+5"]

1. d4 {[%emt 0:00:00]} Nf6 {[%emt 0:00:00]} 2. Nf3 {[%emt 0:00:00]} d5 {[%emt 0:00:00]} 3. c4 {[%emt 0:00:00]} e6 {[%emt 0:00:01]} 4. Nc3 {[%emt 0:00:02]} Bb4 {[%emt 0:00:08]} 5. Qb3 {[%emt 0:00:07]} c5 {[%emt 0:00:17]} 6. Bg5 {[%emt 0:00:04]} Qa5 {[%emt 0:00:04]} 7. Bxf6 {[%emt 0:01:11]} dxc4 {[%emt 0:00:03]} 8. Qxc4 {[%emt 0:00:11]} gxf6 {[%emt 0:00:02]} 9. dxc5 {[%emt 0:00:47]} Bd7 {[%emt 0:02:51]} 10. Rc1 {[%emt 0:01:36]} Bxc5 {[%emt 0:01:15]} 11. e3 {[%emt 0:01:17]} Nc6 {[%emt 0:00:05]} 12. Be2 {[%emt 0:00:12]} Qb4 {[%emt 0:01:03]} 13. Qd3 {[%emt 0:01:26]} Ne5 {[%emt 0:01:47]} 14. Nxe5 {[%emt 0:00:24]} fxe5 {[%emt 0:00:02]} 15. Bf3 {[%emt 0:00:27]} f5 {[%emt 0:00:34]} 16. O-O {[%emt 0:00:46]} e4 {[%emt 0:00:16]} 17. Bh5+ {[%emt 0:00:07]} Ke7 {[%emt 0:00:02]} 18. Nd5+ {[%emt 0:00:13]} exd5 {[%emt 0:00:03]} 19. Qxd5 {[%emt 0:00:02]} Be6 {[%emt 0:00:19]} 20. Qe5 {[%emt 0:00:37]} b6 {[%emt 0:01:10]} 21. Qg7+ {[%emt 0:00:20]} Kd6 {[%emt 0:00:03]} 22. Rfd1+ {[%emt 0:00:43]} Kc6 {[%emt 0:00:02]} 23. Qe7 {[%emt 0:00:41]} Rac8 {[%emt 0:01:23]} 24. Qxe6+ {[%emt 0:00:07]} Kb7 {[%emt 0:00:03]} 25. Rd7+ {[%emt 0:00:04]} Ka8 {[%emt 0:00:03]} 26. Qd5+ {[%emt 0:00:02]} 1-0

[Event "Polgar Challenge 2021"]
[Site "Online"]
[Date "2021.04.04"]
[Round "9.5"]
[White "Shuvalova, Polina"]
[Black "Badelka, Olga"]
[Result "1-0"]
[ECO "B30"]
[WhiteElo "2476"]
[BlackElo "2433"]
[Annotator "ChessBase"]
[PlyCount "125"]
[EventDate "2021.04.08"]
[EventType "tourn"]
[EventCountry "NET"]
[SourceTitle "playchess.com"]
[Source "ChessBase"]
[SourceQuality "1"]
[TimeControl "600+5"]

1. e4 {[%emt 0:00:00]} c5 {[%emt 0:00:00]} 2. Nf3 {[%emt 0:00:00]} Nc6 {[%emt 0:00:00]} 3. Bb5 {[%emt 0:00:01]} e6 {[%emt 0:00:00]} 4. Bxc6 {[%emt 0:00:01]} bxc6 {[%emt 0:00:00]} 5. d3 {[%emt 0:00:02]} Ne7 {[%emt 0:00:00]} 6. b3 {[%emt 0:00:06]} f6 {[%emt 0:00:36]} 7. O-O {[%emt 0:00:40]} e5 {[%emt 0:00:15]} 8. c3 {[%emt 0:00:06]} Ng6 {[%emt 0:00:11]} 9. d4 {[%emt 0:00:12]} cxd4 {[%emt 0:00:18]} 10. cxd4 {[%emt 0:00:03]} Bb4 {[%emt 0:00:42]} 11. Bd2 {[%emt 0:02:01]} Be7 {[%emt 0:00:22]} 12. Bc3 {[%emt 0:00:10]} d5 {[%emt 0:01:56]} 13. Nbd2 {[%emt 0:00:56]} dxe4 {[%emt 0:00:53]} 14. Nxe4 {[%emt 0:00:03]} f5 {[%emt 0:00:35]} 15. Ng3 {[%emt 0:00:45]} e4 {[%emt 0:00:12]} 16. Ne5 {[%emt 0:00:02]} Nxe5 {[%emt 0:00:38]} 17. dxe5 {[%emt 0:00:02]} O-O {[%emt 0:00:25]} 18. Qe2 {[%emt 0:00:22]} Be6 {[%emt 0:00:01]} 19. Rfd1 {[%emt 0:00:04]} Qc7 {[%emt 0:00:10]} 20. Nh5 {[%emt 0:00:18]} Rad8 {[%emt 0:00:40]} 21. g3 {[%emt 0:01:04]} Rxd1+ {[%emt 0:01:10]} 22. Rxd1 {[%emt 0:00:02]} Rd8 {[%emt 0:00:03]} 23. Nf4 {[%emt 0:00:29]} Rxd1+ {[%emt 0:00:09]} 24. Qxd1 {[%emt 0:00:00]} Qd7 {[%emt 0:00:02]} 25. Qe2 {[%emt 0:01:00]} Bc5 {[%emt 0:00:55]} 26. h4 {[%emt 0:00:41]} Kf7 {[%emt 0:00:30]} 27. Qh5+ {[%emt 0:00:09]} Kg8 {[%emt 0:00:02]} 28. Kg2 {[%emt 0:00:31]} g6 {[%emt 0:00:10]} 29. Qe2 {[%emt 0:00:07]} Kf7 {[%emt 0:00:05]} 30. Nh3 {[%emt 0:00:21]} Be7 {[%emt 0:00:18]} 31. Nf4 {[%emt 0:00:10]} Bc5 {[%emt 0:00:08]} 32. Qe1 {[%emt 0:00:12]} Bf8 {[%emt 0:00:08]} 33. Qe2 {[%emt 0:00:37]} Bh6 {[%emt 0:00:02]} 34. Nxe6 {[%emt 0:00:12]} Qxe6 {[%emt 0:00:02]} 35. Qa6 {[%emt 0:00:03]} Qd7 {[%emt 0:00:42]} 36. Qa5 {[%emt 0:00:40]} Bf8 {[%emt 0:00:06]} 37. a4 {[%emt 0:00:09]} Be7 {[%emt 0:00:10]} 38. Bd2 {[%emt 0:00:34]} Qd3 {[%emt 0:00:04]} 39. Be3 {[%emt 0:00:07]} a6 {[%emt 0:00:21]} 40. Qc7 {[%emt 0:00:04]} Qd5 {[%emt 0:00:01]} 41. Bg5 {[%emt 0:00:09]} e3+ {[%emt 0:00:14]} 42. Kh2 {[%emt 0:00:05]} Qe6 {[%emt 0:00:02]} 43. fxe3 {[%emt 0:00:04]} Kf8 {[%emt 0:00:04]} 44. Qb8+ {[%emt 0:00:03]} Kf7 {[%emt 0:00:01]} 45. Qb7 {[%emt 0:00:04]} Kf8 {[%emt 0:00:03]} 46. Bxe7+ {[%emt 0:00:09]} Qxe7 {[%emt 0:00:00]} 47. Qc8+ {[%emt 0:00:05]} Kf7 {[%emt 0:00:02]} 48. Qxc6 {[%emt 0:00:02]} Qxe5 {[%emt 0:00:04]} 49. Qb7+ {[%emt 0:00:03]} Kf8 {[%emt 0:00:13]} 50. Qa8+ {[%emt 0:00:02]} Kg7 {[%emt 0:00:07]} 51. Qxa6 {[%emt 0:00:04]} Qxe3 {[%emt 0:00:06]} 52. Qb7+ {[%emt 0:00:03]} Kg8 {[%emt 0:00:05]} 53. Qc8+ {[%emt 0:00:03]} Kg7 {[%emt 0:00:03]} 54. Qb7+ {[%emt 0:00:05]} Kg8 {[%emt 0:00:02]} 55. b4 {[%emt 0:00:08]} Qd2+ {[%emt 0:00:03]} 56. Kh3 {[%emt 0:00:02]} Qd1 {[%emt 0:00:17]} 57. a5 {[%emt 0:00:08]} Qf1+ {[%emt 0:00:03]} 58. Qg2 {[%emt 0:00:11]} Qb5 {[%emt 0:00:02]} 59. Qa8+ {[%emt 0:00:04]} Kg7 {[%emt 0:00:01]} 60. Qa7+ {[%emt 0:00:05]} Kg8 {[%emt 0:00:04]} 61. Qa8+ {[%emt 0:00:07]} Kg7 {[%emt 0:00:01]} 62. a6 {[%emt 0:00:01]} f4 {[%emt 0:00:18]} 63. Qb7+ {[%emt 0:00:04]} 1-0

[Event "Polgar Challenge 2021"]
[Site "Online"]
[Date "2021.04.04"]
[Round "9.7"]
[White "Gukesh D"]
[Black "Mammadzada, Gunay"]
[Result "1-0"]
[ECO "D02"]
[WhiteElo "2578"]
[BlackElo "2443"]
[Annotator "ChessBase"]
[PlyCount "115"]
[EventDate "2021.04.08"]
[EventType "tourn"]
[EventCountry "NET"]
[SourceTitle "playchess.com"]
[Source "ChessBase"]
[SourceQuality "1"]
[TimeControl "600+5"]

1. d4 {[%emt 0:00:00]} d5 {[%emt 0:00:00]} 2. Nf3 {[%emt 0:00:00]} Nf6 {[%emt 0:00:08]} 3. Bf4 {[%emt 0:00:01]} e6 {[%emt 0:00:06]} 4. e3 {[%emt 0:00:03]} Bd6 {[%emt 0:00:23]} 5. Nbd2 {[%emt 0:00:06]} O-O {[%emt 0:00:13]} 6. c3 {[%emt 0:00:32]} c5 {[%emt 0:00:05]} 7. Bd3 {[%emt 0:00:14]} Nc6 {[%emt 0:00:40]} 8. Bg3 {[%emt 0:00:33]} h6 {[%emt 0:01:14]} 9. Ne5 {[%emt 0:01:39]} Ne7 {[%emt 0:00:18]} 10. f4 {[%emt 0:00:50]} b6 {[%emt 0:01:54]} 11. Qf3 {[%emt 0:01:15]} Bb7 {[%emt 0:00:19]} 12. Bh4 {[%emt 0:00:21]} Nf5 {[%emt 0:00:24]} 13. Bxf6 {[%emt 0:00:55]} gxf6 {[%emt 0:02:20]} 14. Ng4 {[%emt 0:00:04]} Kg7 {[%emt 0:00:02]} 15. Qh3 {[%emt 0:01:16]} Rh8 {[%emt 0:00:02]} 16. O-O {[%emt 0:00:19]} h5 {[%emt 0:00:41]} 17. Nf2 {[%emt 0:00:42]} Nh6 {[%emt 0:01:09]} 18. Nf3 {[%emt 0:00:34]} f5 {[%emt 0:00:09]} 19. Rae1 {[%emt 0:01:22]} Ng4 {[%emt 0:00:18]} 20. Nd1 {[%emt 0:00:22]} Qf6 {[%emt 0:00:22]} 21. Ne5 {[%emt 0:00:03]} Rag8 {[%emt 0:00:25]} 22. Kh1 {[%emt 0:00:01]} Qh6 {[%emt 0:00:12]} 23. Qh4 {[%emt 0:00:17]} f6 {[%emt 0:00:18]} 24. Nf3 {[%emt 0:00:01]} Kf7 {[%emt 0:00:03]} 25. Re2 {[%emt 0:00:16]} Qg7 {[%emt 0:00:02]} 26. c4 {[%emt 0:00:10]} dxc4 {[%emt 0:00:06]} 27. Bxc4 {[%emt 0:00:01]} Ke7 {[%emt 0:00:11]} 28. Qh3 {[%emt 0:00:07]} Rc8 {[%emt 0:00:03]} 29. b3 {[%emt 0:00:04]} a6 {[%emt 0:00:02]} 30. a4 {[%emt 0:00:02]} Qf7 {[%emt 0:00:16]} 31. Nc3 {[%emt 0:00:02]} Kd7 {[%emt 0:00:03]} 32. e4 {[%emt 0:00:11]} Kc7 {[%emt 0:00:06]} 33. exf5 {[%emt 0:00:02]} Rcd8 {[%emt 0:00:02]} 34. Bxe6 {[%emt 0:00:03]} Qg7 {[%emt 0:00:02]} 35. Bd5 {[%emt 0:00:05]} Bxf4 {[%emt 0:00:03]} 36. Bxb7 {[%emt 0:00:06]} Kxb7 {[%emt 0:00:00]} 37. dxc5 {[%emt 0:00:04]} Rd3 {[%emt 0:00:05]} 38. Ne4 {[%emt 0:00:03]} Ne3 {[%emt 0:00:10]} 39. Rfe1 {[%emt 0:00:08]} Qg4 {[%emt 0:00:08]} 40. Nf2 {[%emt 0:00:04]} Qxh3 {[%emt 0:00:04]} 41. Nxh3 {[%emt 0:00:00]} Bh6 {[%emt 0:00:01]} 42. Nf2 {[%emt 0:00:05]} Rxb3 {[%emt 0:00:01]} 43. c6+ {[%emt 0:00:01]} Kc7 {[%emt 0:00:04]} 44. Ne4 {[%emt 0:00:04]} Rf8 {[%emt 0:00:13]} 45. Nd4 {[%emt 0:00:02]} Rb4 {[%emt 0:00:06]} 46. Ne6+ {[%emt 0:00:02]} Kxc6 {[%emt 0:00:01]} 47. Nxf8 {[%emt 0:00:00]} Rxe4 {[%emt 0:00:02]} 48. Nh7 {[%emt 0:00:03]} Re5 {[%emt 0:00:08]} 49. Nxf6 {[%emt 0:00:01]} Rxf5 {[%emt 0:00:00]} 50. Ne4 {[%emt 0:00:03]} Re5 {[%emt 0:00:14]} 51. Rxe3 {[%emt 0:00:19]} Bxe3 {[%emt 0:00:05]} 52. Rxe3 {[%emt 0:00:01]} b5 {[%emt 0:00:10]} 53. axb5+ {[%emt 0:00:01]} axb5 {[%emt 0:00:02]} 54. Kg1 {[%emt 0:00:01]} b4 {[%emt 0:00:01]} 55. Kf2 {[%emt 0:00:01]} b3 {[%emt 0:00:03]} 56. Rc3+ {[%emt 0:00:15]} Kd5 {[%emt 0:00:10]} 57. Nd2 {[%emt 0:00:02]} b2 {[%emt 0:00:14]} 58. Rb3 {[%emt 0:00:01]} 1-0

[Event "Polgar Challenge 2021"]
[Site "Online"]
[Date "2021.04.04"]
[Round "9.8"]
[White "Keymer, Vincent"]
[Black "Murzin, Volodar"]
[Result "0-1"]
[ECO "D46"]
[WhiteElo "2591"]
[BlackElo "2478"]
[Annotator "ChessBase"]
[PlyCount "70"]
[EventDate "2021.04.08"]
[EventType "tourn"]
[EventCountry "NET"]
[SourceTitle "playchess.com"]
[Source "ChessBase"]
[SourceQuality "1"]
[TimeControl "600+5"]

1. d4 {[%emt 0:00:00]} d5 {[%emt 0:00:00]} 2. c4 {[%emt 0:00:00]} c6 {[%emt 0:00:00]} 3. Nf3 {[%emt 0:00:00]} Nf6 {[%emt 0:00:12]} 4. e3 {[%emt 0:00:01]} e6 {[%emt 0:00:14]} 5. Bd3 {[%emt 0:00:01]} Bd6 {[%emt 0:00:09]} 6. O-O {[%emt 0:00:19]} O-O {[%emt 0:00:04]} 7. Nc3 {[%emt 0:00:15]} Nbd7 {[%emt 0:00:14]} 8. e4 {[%emt 0:00:30]} dxc4 {[%emt 0:00:33]} 9. Bxc4 {[%emt 0:00:08]} e5 {[%emt 0:00:02]} 10. h3 {[%emt 0:01:36]} b5 {[%emt 0:01:08]} 11. Bd3 {[%emt 0:00:17]} Bb7 {[%emt 0:00:11]} 12. dxe5 {[%emt 0:01:36]} Nxe5 {[%emt 0:00:04]} 13. Nxe5 {[%emt 0:00:05]} Bxe5 {[%emt 0:00:00]} 14. f4 {[%emt 0:00:01]} Bd4+ {[%emt 0:00:46]} 15. Kh2 {[%emt 0:00:05]} b4 {[%emt 0:00:31]} 16. Ne2 {[%emt 0:00:54]} c5 {[%emt 0:00:21]} 17. e5 {[%emt 0:01:44]} Ng4+ {[%emt 0:02:13]} 18. Kg3 {[%emt 0:00:01]} Qd5 {[%emt 0:00:10]} 19. Rf3 {[%emt 0:03:04]} Bf2+ {[%emt 0:00:24]} 20. Kxg4 {[%emt 0:00:33]} f5+ {[%emt 0:00:06]} 21. Bxf5 {[%emt 0:00:24]} Qxd1 {[%emt 0:00:09]} 22. Be6+ {[%emt 0:00:01]} Kh8 {[%emt 0:00:02]} 23. Rxf2 {[%emt 0:00:00]} Ba6 {[%emt 0:00:12]} 24. Kf3 {[%emt 0:00:06]} Rae8 {[%emt 0:00:02]} 25. Bb3 {[%emt 0:00:04]} Qd3+ {[%emt 0:00:03]} 26. Kg4 {[%emt 0:00:06]} Rxe5 {[%emt 0:00:52]} 27. fxe5 {[%emt 0:00:09]} Rxf2 {[%emt 0:00:04]} 28. Nf4 {[%emt 0:00:00]} Qe4 {[%emt 0:00:19]} 29. Kg3 {[%emt 0:00:11]} Rf1 {[%emt 0:00:04]} 30. e6 {[%emt 0:00:05]} Rxc1 {[%emt 0:00:39]} 31. Rxc1 {[%emt 0:00:02]} Qe3+ {[%emt 0:00:01]} 32. Kg4 {[%emt 0:00:00]} Qxc1 {[%emt 0:00:02]} 33. e7 {[%emt 0:00:00]} Bb5 {[%emt 0:00:02]} 34. Be6 {[%emt 0:00:17]} Qxb2 {[%emt 0:00:06]} 35. Bc4 {[%emt 0:00:09]} Be8 {[%emt 0:00:10]} 0-1